bitfinex/quotes_ETHUSD_20251120
["timestamp","ask_amount","ask_price","bid_price","bid_amount"]
[1763675812575,0.4684,2894.0,2893.9,0.001]
[1763675814675,0.9242,2894.0,2893.9,0.001]
[1763675814876,1.24724806,2894.0,2893.9,0.001]
[1763675815240,1.46267213,2894.0,2893.9,0.001]
[1763675815442,1.46258022,2894.0,2893.9,0.001]
[1763675819141,0.1904,2894.6,2893.9,0.469]
[1763675819346,0.002,2894.5,2893.9,0.469]
[1763675819652,0.32470818,2894.5,2893.9,0.469]
[1763675819853,0.4684,2894.0,2893.9,0.001]
[1763675820066,0.9242,2894.0,2893.9,0.001]
[1763675820944,0.9242,2894.0,2892.4,0.001]
[1763675820945,0.4789,2893.3,2892.4,0.001]
[1763675821145,0.2903,2893.1,2892.4,0.001]
[1763675821567,0.7461,2893.1,2892.4,0.001]
[1763675821879,1.06925421,2893.1,2892.4,0.001]
[1763675823481,0.7461,2893.1,2892.4,0.001]
[1763675825389,8.45170741,2893.1,2892.4,0.001]
[1763675825592,9.63885169,2893.1,2892.4,0.001]
[1763675825794,9.63888519,2893.1,2892.4,0.001]
[1763675825980,2.84027042,2893.1,2892.4,0.001]
[1763675826154,1.97605968,2893.1,2892.4,0.001]
[1763675827958,0.90699264,2893.0,2892.4,0.001]
[1763675828159,0.78776704,2892.9,2892.4,0.001]
[1763675828488,1.24356704,2892.9,2892.4,0.001]
[1763675828681,0.386,2892.8,2892.4,0.001]
[1763675828999,8.14820741,2892.6,2892.4,0.001]
[1763675829196,8.47117445,2892.6,2892.4,0.001]
[1763675829499,8.94757445,2892.6,2892.4,0.001]
[1763675829697,9.8423319,2892.6,2892.4,0.001]
[1763675832306,9.84116521,2892.6,2892.4,0.001]
[1763675833719,16.15088091,2892.6,2892.4,0.001]
[1763675834013,0.90699264,2891.4,2891.1,0.001]
[1763675834213,0.814,2892.5,2891.2,0.182]
[1763675834214,0.90699264,2892.2,2891.2,0.182]
[1763675834378,0.1848,2891.8,2891.3,0.4587]
[1763675834911,0.4798,2891.4,2891.1,0.001]
[1763675835414,0.1848,2891.8,2891.1,0.001]
[1763675835415,1.56819264,2891.8,2891.1,0.001]
[1763675835710,0.6612,2891.8,2891.1,0.183]
[1763675836711,0.90699264,2892.2,2891.2,0.405504]
[1763675836914,0.50608773,2892.1,2891.2,0.879004]
[1763675837730,0.50608773,2892.1,2891.2,0.405504]
[1763675838031,0.4764,2892.0,2891.2,0.405504]
[1763675838582,0.7977405,2892.0,2891.2,0.405504]
[1763675838895,0.4764,2892.4,2891.3,0.03458651]
[1763675839118,0.6612,2892.4,2891.3,0.405504]
[1763675839323,0.4764,2892.3,2891.3,0.879004]
[1763675840056,0.4764,2892.3,2891.1,0.183]
[1763675840057,0.79782763,2892.3,2891.2,0.405504]
[1763675840348,0.90699264,2892.2,2891.1,0.6565]
[1763675840497,1.3267435,2892.1,2891.1,0.6565]
[1763675841036,1.3267435,2892.1,2891.1,0.183]
[1763675841354,0.7979902,2892.0,2891.1,0.183]
[1763675841807,0.7979902,2892.0,2891.1,0.6565]
[1763675842536,0.4798,2891.2,2891.1,0.001]
[1763675842736,0.9562,2891.2,2891.1,0.001]
[1763675842954,1.955723,2891.2,2891.1,0.001]
[1763675843130,1.46410946,2891.2,2891.1,0.001]
[1763675843852,1.56410946,2891.2,2891.1,0.001]
[1763675844463,1.56410946,2891.2,2888.7,0.4735]
[1763675844464,0.4454,2890.9,2888.7,0.4735]
[1763675844759,0.90699264,2890.5,2888.8,0.4735]
[1763675844966,1.15013094,2890.4,2889.0,0.5993]
[1763675845121,1.15013094,2890.4,2888.0,6.98061477]
[1763675845122,0.7979902,2890.3,2888.0,0.182]
[1763675845321,0.90699264,2889.9,2888.2,0.65417648]
[1763675845550,0.3215902,2889.8,2888.2,0.65417648]
[1763675845865,0.9827902,2889.8,2888.3,0.4735]
[1763675846068,0.51056848,2889.7,2888.3,0.4735]
[1763675846369,0.51056848,2889.7,2888.2,0.18067648]
[1763675846370,0.98696848,2889.7,2888.2,0.18067648]
[1763675846710,0.3215902,2889.6,2888.2,0.18067648]
[1763675846953,0.90699264,2889.5,2888.2,0.18067648]
[1763675847157,7.59660497,2889.6,2888.2,0.65417648]
[1763675847158,1.17194996,2889.4,2888.2,0.65417648]
[1763675847371,0.3212428,2889.3,2888.2,0.65417648]
[1763675847523,0.7976428,2889.4,2888.3,0.4735]
[1763675847724,0.3212428,2889.3,2888.3,0.4735]
[1763675848133,0.3212428,2889.6,2888.3,0.4735]
[1763675848352,0.4764,2889.3,2888.3,0.405504]
[1763675848666,0.4764,2889.3,2888.2,0.18067648]
[1763675849252,0.3212428,2889.4,2888.3,0.4735]
[1763675849556,0.7976428,2889.6,2888.4,0.405504]
[1763675849745,0.32120053,2889.5,2888.4,0.405504]
[1763675850052,0.79760053,2889.6,2888.5,0.4735]
[1763675851338,0.4554,2890.3,2889.5,0.5914]
[1763675851527,0.32084906,2890.3,2889.5,0.5914]
[1763675851850,0.4554,2890.4,2889.5,1.0745]
[1763675852374,0.77624906,2890.4,2889.5,1.0745]
[1763675852525,0.32084906,2890.3,2889.5,1.0745]
[1763675852722,0.77624906,2890.3,2889.5,1.0745]
[1763675852925,0.77624906,2890.3,2889.5,0.5914]
[1763675852926,0.32084906,2890.2,2889.5,0.5914]
[1763675853165,0.6377,2889.6,2888.2,0.18067648]
[1763675853364,0.6377,2889.6,2888.7,0.4831]
[1763675854956,1.0931,2889.6,2888.7,0.4831]
[1763675855862,0.1867,2890.1,2889.5,0.5914]
[1763675856170,0.50776427,2890.1,2889.5,0.5914]
[1763675857030,0.4554,2890.7,2889.5,1.0745]
[1763675857327,0.4554,2890.7,2889.6,0.4831]
[1763675858858,0.6604,2889.7,2888.5,0.001]
[1763675859057,0.6604,2889.7,2888.6,0.4924]
[1763675859058,0.62350555,2889.6,2888.6,0.4924]
[1763675859260,0.32150555,2889.5,2888.6,0.4924]
[1763675859830,0.50430555,2889.7,2888.6,0.4924]
[1763675860027,0.32150555,2889.7,2888.7,0.405504]
[1763675860228,0.1828,2889.9,2888.7,0.405504]
[1763675860442,0.1828,2889.9,2888.9,0.405504]
[1763675860829,0.6766,2889.9,2888.9,0.405504]
[1763675861041,0.32150555,2889.8,2888.9,0.405504]
[1763675861262,0.81530555,2889.8,2888.9,0.405504]
[1763675861427,0.81530555,2889.8,2888.8,0.4924]
[1763675861631,0.4938,2889.7,2888.8,0.4924]
[1763675862359,0.4938,2889.7,2888.5,0.001]
[1763675862554,0.81530555,2889.7,2888.5,0.001]
[1763675862950,0.4938,2889.6,2888.5,0.001]
[1763675863259,0.90699264,2889.3,2888.5,0.001]
[1763675863463,1.14087965,2889.2,2888.5,0.001]
[1763675863659,0.32175879,2889.1,2888.5,0.001]
[1763675863858,0.81555879,2889.1,2888.5,0.001]
[1763675864660,0.32175879,2889.1,2888.5,0.406504]
[1763675864862,0.4938,2889.7,2889.0,0.4904]
[1763675865158,0.1828,2889.9,2889.1,0.4904]
[1763675865159,0.32177082,2889.8,2889.1,0.4904]
[1763675865362,0.99837082,2889.9,2889.1,0.4904]
[1763675865532,0.32182536,2889.8,2889.1,0.6162]
[1763675865735,0.32182536,2889.8,2888.8,0.4924]
[1763675865736,0.81562536,2889.8,2888.8,0.4924]
[1763675865930,1.722618,2889.8,2888.5,0.001]
[1763675866283,1.73458876,2889.7,2888.6,0.405504]
[1763675866445,0.32182536,2889.6,2888.6,0.405504]
[1763675866762,0.27182536,2889.6,2888.6,0.897904]
[1763675867274,7.28421597,2889.4,2888.5,0.001]
[1763675867449,0.90699264,2889.3,2888.5,0.001]
[1763675867646,0.81912086,2889.2,2888.5,0.001]
[1763675867947,1.31292086,2889.2,2888.5,0.001]
[1763675868269,0.6096,2888.6,2888.5,0.001]
[1763675869255,1.1034,2888.6,2888.5,0.001]
[1763675869449,0.132,2888.6,2888.5,0.001]
[1763675869778,1.1034,2888.6,2888.5,0.001]
[1763675869986,0.6096,2888.6,2888.5,0.001]
[1763675870285,0.4938,2888.9,2888.5,0.001]
[1763675871542,0.4776,2888.6,2888.5,0.001]
[1763675871958,0.9714,2888.6,2888.5,0.001]
[1763675872384,1.15923926,2888.6,2888.5,0.001]
[1763675874202,1.33504139,2888.6,2888.5,0.001]
[1763675874385,8.19120861,2888.3,2888.2,0.18167648]
[1763675874699,8.50940861,2888.3,2888.2,0.18167648]
[1763675874908,9.91352947,2888.3,2888.2,0.18167648]
[1763675875757,2.6293135,2888.3,2888.2,0.001]
[1763675876005,1.22519264,2888.3,2888.2,0.001]
[1763675876160,1.71899264,2888.3,2888.2,0.001]
[1763675878653,9.32648411,2888.3,2888.2,0.001]
[1763675880443,1.54846814,2888.3,2888.2,0.001]
[1763675880671,1.54846814,2888.3,2888.2,0.4914]
[1763675880672,0.3232755,2888.3,2888.2,0.4914]
[1763675880966,0.3232755,2888.8,2888.2,0.4914]
[1763675881355,0.32299645,2888.8,2888.2,0.001]
[1763675881543,0.4938,2888.8,2888.2,0.001]
[1763675881866,0.81679645,2888.8,2888.2,0.001]
[1763675882058,1.22998909,2888.7,2888.2,0.001]
[1763675882257,0.32301725,2888.6,2888.2,0.001]
[1763675882444,0.81681725,2888.6,2888.2,0.001]
[1763675883333,0.32301725,2888.6,2888.2,0.001]
[1763675883537,0.32301725,2888.6,2888.5,0.4904]
[1763675883769,0.32301725,2889.4,2888.5,0.9828]
[1763675883967,0.4938,2889.6,2888.5,0.9828]
[1763675883968,1.23000989,2889.5,2888.5,0.4904]
[1763675884170,1.23000989,2889.5,2888.2,0.001]
[1763675884171,0.90699264,2889.0,2888.2,0.001]
[1763675884372,0.32301725,2888.9,2888.2,0.406504]
[1763675884588,0.32301725,2888.9,2888.3,0.4924]
[1763675884871,0.32301725,2888.9,2888.8,0.4904]
[1763675885057,0.32301725,2889.3,2888.8,0.4904]
[1763675885974,0.3231208,2889.3,2888.8,0.4904]
[1763675886274,0.3231208,2889.3,2888.8,0.9828]
[1763675886275,0.5312744,2889.3,2888.8,0.9828]
[1763675886480,0.5312744,2889.3,2889.2,0.1258]
[1763675886481,0.3231208,2889.3,2889.2,0.1258]
[1763675886782,0.8169208,2889.8,2888.8,0.4924]
[1763675886971,0.90699264,2889.4,2888.4,0.4924]
[1763675887177,0.3231208,2889.3,2888.4,0.4924]
[1763675888091,1.22393374,2889.3,2888.4,0.4924]
[1763675888300,0.3231208,2889.2,2888.5,0.405504]
[1763675888479,0.3231208,2889.7,2888.5,0.405504]
[1763675888801,0.3231208,2889.6,2888.7,0.405504]
[1763675889002,0.3231208,2889.8,2888.7,0.405504]
[1763675889159,0.3231208,2889.7,2888.8,0.4718]
[1763675889364,0.3231208,2889.6,2888.8,0.4718]
[1763675889594,0.3231208,2889.7,2888.8,0.4718]
[1763675889784,0.3231208,2889.6,2888.8,0.4718]
[1763675890096,0.32349379,2889.7,2888.8,0.4718]
[1763675890296,0.002,2889.3,2888.9,0.405504]
[1763675890774,0.002,2889.3,2889.2,1.024004]
[1763675891176,0.002,2889.3,2889.2,1.495804]
[1763675893917,0.002,2889.3,2889.2,0.6185]
[1763675894083,0.002,2889.3,2888.8,0.405504]
[1763675894282,0.002,2889.3,2889.2,0.4927]
[1763675894670,0.002,2889.3,2889.2,0.9645]
[1763675895094,0.002,2889.3,2889.2,0.4927]
[1763675895302,8.27251597,2889.3,2888.2,0.001]
[1763675895512,0.6738,2888.3,2888.2,0.001]
[1763675895732,0.6738,2888.3,2886.9,0.141]
[1763675895941,8.45240861,2888.0,2886.9,0.141]
[1763675896254,8.45240861,2888.0,2886.7,0.141]
[1763675896255,0.90699264,2887.9,2886.7,0.141]
[1763675896547,0.32325889,2887.8,2886.7,0.141]
[1763675896747,0.19003515,2887.7,2886.7,0.141]
[1763675897048,0.51329404,2887.7,2886.7,0.141]
[1763675897257,0.51329404,2887.7,2886.3,0.141]
[1763675897258,0.90699264,2887.3,2886.3,0.141]
[1763675897430,1.58319264,2886.8,2885.8,0.1258]
[1763675897596,1.20999975,2886.7,2885.8,0.1258]
[1763675897801,0.32306014,2886.6,2885.8,0.1258]
[1763675898051,7.28421597,2886.3,2885.4,0.1258]
[1763675898212,0.90699264,2885.7,2885.1,0.1258]
[1763675898531,0.90699264,2885.2,2884.7,0.18084846]
[1763675898736,0.18,2884.8,2884.7,0.18084846]
[1763675899234,0.4901,2884.8,2884.7,0.18084846]
[1763675899838,0.90699264,2885.0,2884.7,0.18084846]
[1763675900045,0.81212355,2884.9,2884.7,0.18084846]
[1763675900201,0.405504,2884.8,2884.7,0.18084846]
[1763675900541,0.90699264,2884.1,2883.3,0.1258]
[1763675901730,0.4901,2884.4,2883.3,0.1258]
[1763675903236,0.4901,2884.5,2883.4,0.877304]
[1763675903540,0.4901,2884.7,2883.4,0.877304]
[1763675904041,1.7261135,2885.1,2882.4,0.1334]
[1763675904042,0.18,2883.5,2882.4,0.1334]
[1763675904198,0.90699264,2883.6,2882.6,0.4718]
[1763675905340,0.90699264,2883.6,2882.7,0.405504]
[1763675905500,0.18,2884.1,2882.7,0.405504]
[1763675905706,0.18,2884.1,2882.9,0.405504]
[1763675905904,0.6701,2884.1,2882.9,0.405504]
[1763675906212,0.6701,2884.1,2882.8,0.4718]
[1763675906424,0.4901,2884.0,2882.8,0.4718]
[1763675906734,0.4901,2884.0,2882.5,0.405504]
[1763675906735,0.90699264,2883.9,2882.5,0.405504]
[1763675906936,0.86813086,2883.8,2882.5,0.405504]
[1763675907106,1.35823086,2883.8,2882.5,0.405504]
[1763675907302,0.86813086,2883.8,2882.7,0.405504]
[1763675907520,0.18,2884.1,2882.7,0.405504]
[1763675907726,0.90103295,2885.0,2884.0,0.4927]
[1763675908007,0.4901,2885.3,2884.3,0.4927]
[1763675908200,0.4901,2885.3,2884.4,0.182]
[1763675909003,0.002,2884.8,2884.4,0.182]
[1763675909416,0.002,2884.8,2884.5,0.4718]
[1763675909637,0.002,2884.8,2884.6,0.405504]
[1763675910003,0.002,2884.8,2884.7,0.4718]
[1763675910641,0.002,2884.8,2884.7,0.877304]
[1763675910849,0.002,2884.8,2884.4,0.182]
[1763675910850,0.002,2884.8,2884.5,0.405504]
[1763675911035,0.002,2884.8,2883.7,0.1334]
[1763675911227,0.002,2884.8,2884.0,0.405504]
[1763675911650,0.002,2884.8,2884.1,0.405504]
[1763675912059,0.002,2884.8,2884.3,0.405504]
[1763675912580,0.002,2884.8,2884.5,0.405504]
[1763675912930,0.002,2884.8,2884.7,0.405504]
[1763675913463,0.002,2885.1,2884.8,0.405504]
[1763675913781,0.4641,2886.9,2884.8,0.405504]
[1763675914066,0.18,2887.0,2884.3,0.90699264]
[1763675914067,0.18,2887.0,2885.0,0.405504]
[1763675914230,0.6441,2886.8,2885.0,0.405504]
[1763675914426,0.6441,2886.8,2885.2,0.405504]
[1763675914672,0.4641,2886.7,2885.2,0.886504]
[1763675914842,1.37109264,2886.7,2885.2,0.886504]
[1763675915042,1.30319356,2886.6,2885.2,0.405504]
[1763675915234,1.30319356,2886.6,2885.1,0.1258]
[1763675915235,0.90699264,2886.3,2885.1,0.1258]
[1763675915666,0.4641,2886.2,2885.1,0.1258]
[1763675916481,0.1905,2885.2,2884.7,0.1258]
[1763675917062,0.1905,2885.4,2884.7,0.1258]
[1763675917473,0.1905,2885.9,2884.8,0.886504]
[1763675917671,0.4641,2886.3,2884.8,0.886504]
[1763675917842,0.4641,2886.3,2885.0,0.405504]
[1763675918259,0.4641,2886.3,2885.2,0.405504]
[1763675918802,1.37109264,2886.3,2885.2,0.405504]
[1763675919098,0.82109356,2886.2,2885.2,0.405504]
[1763675919267,1.29279356,2886.2,2885.2,0.405504]
[1763675920286,0.82109356,2886.2,2885.2,0.405504]
[1763675920592,0.4717,2886.1,2885.2,0.405504]
[1763675922597,0.79158996,2886.1,2884.8,0.405504]
[1763675922965,0.4717,2886.0,2884.8,0.405504]
[1763675923464,0.1906,2885.9,2884.8,0.405504]
[1763675923961,0.82109356,2886.2,2884.8,0.872904]
[1763675924163,0.32055158,2886.1,2885.0,0.405504]
[1763675924574,0.32055158,2886.2,2885.2,0.405504]
[1763675924779,0.4717,2886.3,2885.2,0.405504]
[1763675925063,0.4717,2886.3,2885.1,0.4674]
[1763675925064,0.4717,2886.3,2885.1,0.405504]
[1763675925258,0.32055158,2886.2,2885.1,0.405504]
[1763675925492,0.32055158,2886.1,2885.1,0.405504]
[1763675925687,0.32055158,2886.0,2885.1,0.405504]
[1763675925894,0.32055158,2886.2,2885.1,0.405504]
[1763675926094,0.32055158,2886.1,2885.1,0.405504]
[1763675926293,0.32055158,2886.0,2885.1,0.405504]
[1763675926592,0.32055158,2885.9,2885.1,0.405504]
[1763675926911,0.32055158,2885.8,2884.7,0.1258]
[1763675927066,0.32055158,2885.7,2884.7,0.1258]
[1763675927395,0.32055158,2885.6,2885.0,0.001]
[1763675927593,0.32055158,2885.5,2885.0,0.001]
[1763675927769,0.32055158,2885.4,2885.0,0.001]
[1763675927966,0.32055158,2885.3,2885.0,0.001]
[1763675928168,0.32055158,2885.5,2885.0,0.001]
[1763675928484,0.32055158,2885.4,2885.0,0.001]
[1763675928680,0.32055158,2885.5,2885.0,0.001]
[1763675928868,0.32055158,2885.4,2885.0,0.001]
[1763675929061,0.32055158,2885.5,2885.0,0.001]
[1763675929314,0.32055158,2885.4,2885.0,0.001]
[1763675929610,0.32055158,2885.5,2885.0,0.001]
[1763675929811,0.32055158,2885.4,2885.0,0.001]
[1763675929982,0.79225158,2885.7,2885.0,0.001]
[1763675930301,0.32055158,2885.6,2885.0,0.001]
[1763675930594,0.32055158,2885.5,2885.0,0.001]
[1763675930799,0.32055158,2885.6,2885.0,0.001]
[1763675930998,0.32055158,2885.5,2885.0,0.001]
[1763675931167,0.32055158,2885.4,2885.0,0.001]
[1763675931366,0.32055158,2885.7,2885.0,0.001]
[1763675931567,0.32055158,2885.6,2885.0,0.001]
[1763675931901,0.32055158,2885.5,2885.0,0.001]
[1763675932105,0.32055158,2885.4,2885.0,0.4684]
[1763675932267,0.32055158,2885.8,2885.0,0.4684]
[1763675932470,0.32055158,2885.7,2885.0,0.4684]
[1763675932667,0.32055158,2885.6,2885.0,0.4684]
[1763675932868,0.32055158,2885.5,2885.0,0.4684]
[1763675933068,0.32055158,2885.4,2885.0,0.4684]
[1763675933288,0.32055158,2885.3,2885.0,0.4684]
[1763675933488,0.32055158,2885.8,2885.0,0.4684]
[1763675933815,0.002,2887.1,2885.3,0.405504]
[1763675933816,0.32055158,2885.7,2885.3,0.405504]
[1763675934041,0.32055158,2886.4,2885.1,0.405504]
[1763675934322,0.32055158,2886.3,2885.1,0.405504]
[1763675934502,0.32055158,2886.2,2885.3,0.405504]
[1763675934701,0.79225158,2886.1,2885.0,0.001]
[1763675934901,0.23,2887.0,2885.2,0.405504]
[1763675934902,0.32055158,2886.0,2885.2,0.405504]
[1763675935103,1.37869264,2886.7,2885.0,0.001]
[1763675935104,0.32055158,2885.9,2885.0,0.001]
[1763675935344,0.32055158,2885.8,2885.0,0.001]
[1763675935517,0.32055158,2885.7,2885.0,0.001]
[1763675935722,0.32055158,2885.6,2885.0,0.001]
[1763675935896,0.32055158,2885.5,2885.0,0.001]
[1763675936095,0.32055158,2885.4,2885.0,0.001]
[1763675936305,0.32055158,2885.3,2885.0,0.001]
[1763675936510,0.32055158,2885.2,2885.0,0.001]
[1763675936694,0.32055158,2885.1,2885.0,0.001]
[1763675940205,0.32497338,2885.1,2885.0,0.001]
[1763675941320,1.28277338,2885.1,2885.0,0.001]
[1763675942019,0.81107338,2885.1,2885.0,0.001]
[1763675942221,0.32497338,2885.1,2885.0,0.001]
[1763675942621,0.32497338,2885.1,2885.0,0.479]
[1763675943143,0.32497338,2885.1,2885.0,0.001]
[1763675945119,0.32497338,2885.1,2885.0,0.479]
[1763675946050,0.4717,2885.7,2885.0,0.479]
[1763675946207,1.09759264,2885.9,2885.0,0.479]
[1763675946536,0.002,2885.3,2885.0,0.9464]
[1763675946736,0.002,2885.3,2885.1,0.405504]
[1763675946956,0.002,2885.3,2885.2,0.883504]
[1763675947314,0.002,2885.3,2885.2,1.350904]
[1763675947510,0.32703816,2885.3,2885.2,1.350904]
[1763675947905,0.002,2885.3,2885.2,1.350904]
[1763675948335,0.4717,2886.7,2885.3,0.405504]
[1763675948557,0.4621,2886.7,2885.3,0.877304]
[1763675948753,0.90699264,2886.6,2885.3,0.877304]
[1763675948951,0.82089356,2886.5,2885.3,0.877304]
[1763675949168,1.28299356,2886.5,2885.4,0.405504]
[1763675949337,0.32499367,2886.4,2885.5,0.405504]
[1763675949670,0.32499367,2886.3,2885.6,0.4718]
[1763675949971,0.32499367,2886.2,2885.4,0.405504]
[1763675950141,0.32499367,2886.1,2885.4,0.405504]
[1763675950338,0.32499367,2886.0,2885.4,0.877304]
[1763675950542,0.4621,2886.4,2885.4,0.877304]
[1763675950543,0.32499367,2885.9,2885.4,0.877304]
[1763675950866,0.32499367,2885.8,2885.6,0.405504]
[1763675951071,0.32499367,2886.4,2885.6,0.405504]
[1763675951256,0.32499367,2886.3,2885.8,0.405504]
[1763675951568,0.32499367,2886.7,2885.8,0.405504]
[1763675951785,0.182,2886.8,2886.2,0.4706]
[1763675951786,0.32499367,2886.6,2886.2,0.4706]
[1763675951941,0.32499367,2886.5,2886.2,0.4706]
[1763675952139,0.32499367,2886.7,2886.3,0.1577]
[1763675952335,0.002,2886.8,2886.7,0.4706]
[1763675955457,0.002,2886.8,2886.7,1.347904]
[1763675955664,0.002,2886.8,2886.7,0.876104]
[1763675957692,0.4693,2886.8,2886.3,0.1577]
[1763675957891,0.4693,2886.8,2885.8,0.4718]
[1763675957892,0.4693,2886.8,2886.2,0.405504]
[1763675958097,0.4693,2886.8,2886.1,0.1577]
[1763675958266,0.4693,2886.8,2886.2,0.405504]
[1763675958473,0.4693,2886.8,2886.1,0.1577]
[1763675958474,0.4621,2886.7,2885.4,0.4718]
[1763675958686,0.18383926,2886.6,2885.5,0.405504]
[1763675959004,0.50690212,2886.6,2885.5,0.405504]
[1763675959159,0.4621,2886.5,2885.5,0.405504]
[1763675960186,0.002,2886.8,2885.7,0.405504]
[1763675960411,0.32505744,2886.8,2885.9,0.405504]
[1763675960698,0.32505744,2886.8,2885.4,0.4718]
[1763675960699,0.4621,2886.7,2885.4,0.4718]
[1763675960865,0.78515744,2886.7,2885.5,0.405504]
[1763675961061,0.78515744,2886.7,2885.4,0.4718]
[1763675961261,0.4621,2886.6,2885.4,0.4718]
[1763675961613,0.4621,2886.6,2885.2,0.4718]
[1763675961765,0.4621,2886.6,2885.3,0.405504]
[1763675962269,0.4621,2886.6,2885.2,0.4718]
[1763675962463,0.4621,2886.6,2885.3,0.405504]
[1763675963317,0.4621,2886.6,2885.4,0.405504]
[1763675964200,0.4621,2886.6,2885.0,0.001]
[1763675964201,0.90699264,2886.4,2885.0,0.001]
[1763675964405,1.559841,2886.3,2885.2,0.405504]
[1763675964574,0.32305744,2886.2,2885.2,0.405504]
[1763675964772,0.78515744,2886.2,2885.2,0.405504]
[1763675965208,0.32305744,2886.2,2885.4,0.405504]
[1763675965407,0.32305744,2886.2,2885.0,0.001]
[1763675965408,0.6575,2885.3,2885.0,0.001]
[1763675965581,8.21223562,2885.1,2885.0,0.001]
[1763675965771,10.50732648,2885.1,2885.0,0.001]
[1763675966008,9.87030157,2885.1,2885.0,0.001]
[1763675966506,3.03045859,2885.1,2885.0,0.001]
[1763675966709,2.15787663,2885.1,2885.0,0.001]
[1763675969094,1.23037663,2885.1,2885.0,0.001]
[1763675969294,0.90699264,2885.1,2885.0,0.001]
[1763675970277,6.83984298,2886.0,2885.0,0.942]
[1763675970278,0.1855,2885.8,2885.0,0.942]
[1763675970484,6.83984298,2886.5,2885.3,0.405504]
[1763675970485,0.4827,2886.5,2885.3,0.405504]
[1763675970696,0.4827,2886.4,2885.1,0.6281]
[1763675970912,0.4827,2886.4,2885.2,0.875904]
[1763675971112,0.4827,2886.4,2885.4,0.405504]
[1763675971315,0.32487459,2886.6,2885.4,0.405504]
[1763675971632,0.4827,2886.5,2885.2,0.405504]
[1763675971805,0.80557459,2886.5,2885.2,0.875904]
[1763675972334,0.80557459,2886.5,2885.4,0.405504]
[1763675974029,0.80557459,2886.5,2885.5,0.405504]
[1763675974831,0.32287459,2886.5,2885.5,0.405504]
[1763675975001,0.4827,2886.4,2885.5,0.405504]
[1763675975837,0.4827,2886.4,2885.2,0.405504]
[1763675976018,0.90699264,2886.3,2885.2,0.405504]
[1763675976333,1.14582815,2886.2,2885.2,0.405504]
[1763675976651,0.32287459,2886.1,2885.2,0.875904]
[1763675976810,0.4847,2886.6,2885.2,0.875904]
[1763675976811,0.80799889,2886.6,2885.2,0.875904]
[1763675977029,0.32329889,2886.5,2885.4,0.405504]
[1763675977212,0.4847,2886.6,2885.4,0.405504]
[1763675977511,0.4847,2886.6,2885.6,0.405504]
[1763675978142,0.4847,2886.6,2885.2,0.405504]
[1763675978441,0.4847,2886.6,2885.7,0.405504]
[1763675979544,0.4847,2886.6,2885.2,0.4598]
[1763675979709,0.4847,2886.6,2885.3,0.405504]
[1763675980738,0.4847,2886.6,2885.3,0.865304]
[1763675980907,0.4847,2886.6,2885.5,0.405504]
[1763675981109,0.80799889,2886.6,2885.5,0.405504]
[1763675981310,0.32329889,2886.5,2885.6,0.405504]
[1763675981746,0.4915,2886.5,2885.6,0.405504]
[1763675984567,0.4915,2886.5,2885.3,0.405504]
[1763675984737,0.4915,2886.5,2885.3,0.406504]
[1763675984935,0.4935,2886.5,2885.3,0.406504]
[1763675985146,0.4935,2886.5,2885.3,0.001]
[1763675985342,0.4935,2886.5,2885.4,0.405504]
[1763675986926,0.81697635,2886.5,2885.4,0.405504]
[1763675987171,0.32347635,2886.4,2885.4,0.405504]
[1763675987353,0.4915,2886.4,2885.4,0.405504]
[1763675988424,0.81497635,2886.4,2885.4,0.405504]
[1763675988825,0.4915,2886.3,2885.4,0.405504]
[1763675990260,0.4915,2886.3,2885.3,0.001]
[1763675990562,0.81562583,2886.3,2885.3,0.001]
[1763675990925,0.81562583,2886.2,2885.3,0.001]
[1763675991154,0.32412583,2886.1,2885.3,0.001]
[1763675991355,0.81562583,2886.1,2885.3,0.001]
[1763675991526,0.6383,2885.4,2885.3,0.001]
[1763675991734,0.96242583,2885.4,2885.3,0.001]
[1763675991936,1.45392583,2885.4,2885.3,0.001]
[1763675992326,0.32412583,2885.4,2885.3,0.6587]
[1763675992670,0.1803,2886.0,2885.3,0.6587]
[1763675992671,0.32412583,2885.9,2885.3,0.6587]
[1763675994554,0.4915,2885.9,2885.3,0.6587]
[1763675994728,0.81562583,2885.9,2885.3,0.6587]
[1763675994925,0.32412583,2885.8,2885.3,0.6587]
[1763675995129,0.81562583,2885.9,2885.3,0.501]
[1763675995772,0.81562583,2885.9,2885.3,0.001]
[1763675995968,0.32412583,2885.9,2885.3,0.001]
[1763675996281,0.458,2885.4,2885.3,0.001]
[1763675996448,0.78212583,2885.4,2885.3,0.001]
[1763675996644,1.27362583,2885.4,2885.3,0.001]
[1763675997967,0.32412583,2885.4,2885.3,0.501]
[1763675998168,0.32412583,2885.9,2885.3,0.501]
[1763675998338,0.32412583,2885.8,2885.3,0.501]
[1763675998540,0.32412583,2885.7,2885.3,0.501]
[1763675998738,0.81562583,2885.9,2885.3,0.501]
[1763675998971,0.32412583,2885.8,2885.3,0.501]
[1763675999168,0.32412583,2885.7,2885.3,0.501]
[1763675999342,0.458,2885.4,2885.3,0.001]
[1763675999540,0.78212583,2885.4,2885.3,0.001]
[1763675999774,1.27362583,2885.4,2885.3,0.001]
[1763676000347,1.27362583,2885.4,2885.0,0.001]
[1763676000348,2.22177852,2885.4,2885.0,0.001]
[1763676000568,8.57970109,2885.1,2885.0,0.001]
[1763676000778,8.90382692,2885.1,2885.0,0.001]
[1763676000941,9.39532692,2885.1,2885.0,0.001]
[1763676001148,1.99441847,2885.1,2885.0,0.001]
[1763676001351,2.19386032,2885.1,2885.0,0.001]
[1763676003561,2.19386032,2885.1,2883.0,0.6175]